[Event "Lithuanian Chess League 2021"]
[Site "Various cities"]
[Date "2021.05.14"]
[Round "5.25"]
[White "Gavenavicius, Karolis"]
[Black "Cirtautas, Saulius"]
[Result "0-1"]
[WhiteElo "1134"]
[BlackElo "1931"]
[PlyCount "86"]
[TimeControl "90/40+30:0"]
[WhiteClock "0:01:04"]
[BlackClock "0:27:30"]

1. e4 {[%emt 0:00:01]} Nf6 {[%emt 0:00:10]} 2. Nc3 {[%emt 0:00:55]} d6 {[%emt
0:00:23]} 3. d4 {[%emt 0:02:18]} g6 {[%emt 0:00:50]} 4. Nf3 {[%emt 0:02:10]}
Bg7 {[%emt 0:00:28]} 5. Be2 {[%emt 0:01:43]} O-O {[%emt 0:00:26]} 6. O-O {
[%emt 0:01:16]} Nc6 {[%emt 0:01:47]} 7. h3 {[%emt 0:03:02]} h6 {[%emt 0:02:31]}
8. Be3 {[%emt 0:07:13]} a6 {[%emt 0:04:26]} 9. a4 {[%emt 0:03:29]} e5 {[%emt 0:
01:47]} 10. dxe5 {[%emt 0:03:39]} dxe5 {[%emt 0:03:21]} 11. Bc4 {[%emt 0:04:57]
} Be6 {[%emt 0:02:06]} 12. Bxe6 {[%emt 0:01:48]} fxe6 {[%emt 0:00:17]} 13. Bc5
{[%emt 0:12:17]} Qxd1 {[%emt 0:01:43]} 14. Rfxd1 {[%emt 0:05:34]} Rfd8 {[%emt
0:00:22]} 15. Kf1 {[%emt 0:02:50]} Kf7 {[%emt 0:01:49]} 16. Ke2 {[%emt 0:01:49]
} Nd7 {[%emt 0:03:08]} 17. Be3 {[%emt 0:01:09]} Nb6 {[%emt 0:04:34]} 18. Bxb6 {
[%emt 0:08:38]} cxb6 {[%emt 0:00:19]} 19. Na2 {[%emt 0:02:11]} Nd4+ {[%emt 0:
05:07]} 20. Nxd4 {[%emt 0:00:14]} Rxd4 {[%emt 0:02:33]} 21. Nc3 {[%emt 0:06:03]
} Rc8 {[%emt 0:01:52]} 22. f3 {[%emt 0:01:51]} h5 {[%emt 0:02:19]} 23. Rd3 {
[%emt 0:10:59]} Rc7 {[%emt 0:05:09]} 24. Rad1 {[%emt 0:01:20]} Ke7 {[%emt 0:00:
36]} 25. R1d2 {[%emt 0:00:41]} Bf6 {[%emt 0:00:56]} 26. Kd1 {[%emt 0:01:49]}
Bg7 {[%emt 0:01:28]} 27. Rxd4 {[%emt 0:00:43]} exd4 {[%emt 0:00:22]} 28. Ne2 {
[%emt 0:01:10]} e5 {[%emt 0:02:08]} 29. Nc1 {[%emt 0:01:28]} Bh6 {[%emt 0:00:
52]} 30. Rd3 {[%emt 0:00:33]} Bxc1 {[%emt 0:02:09]} 31. Kxc1 {[%emt 0:00:07]}
g5 {[%emt 0:03:50]} 32. Kd2 {[%emt 0:03:08]} Rc4 {[%emt 0:05:07]} 33. Rb3 {
[%emt 0:00:39]} Rc6 {[%emt 0:00:11]} 34. Kd3 {[%emt 0:02:52]} h4 {[%emt 0:01:
54]} 35. Ra3 {[%emt 0:04:44]} Kd7 {[%emt 0:01:29]} 36. Rb3 {[%emt 0:00:59]} Kc7
{[%emt 0:01:14]} 37. Ra3 {[%emt 0:01:19]} Rc5 {[%emt 0:02:33]} 38. c3 {[%emt 0:
00:52]} dxc3 {[%emt 0:00:46]} 39. Rxc3 {[%emt 0:00:07]} Kc6 {[%emt 0:01:11]}
40. Rc4 {[%emt 0:01:27]} b5 {[%emt 0:00:34]} 41. axb5+ {[%emt 0:00:30]} Kxb5 {
[%emt 0:00:29]} 42. Rxc5+ {[%emt 0:00:46]} Kxc5 {[%emt 0:00:46]} 43. Ke3 {
[%emt 0:05:36]} a5 {[%emt 0:02:27]} 0-1